bitfinex/quotes_BTCUSD_20241002
["timestamp","ask_amount","ask_price","bid_price","bid_amount"]
[1727876919723,0.02639055,61304.0,61303.0,0.009]
[1727876920174,0.02639055,61304.0,61282.0,0.326358]
[1727876920175,0.163144,61296.0,61282.0,0.326358]
[1727876920403,0.02639055,61304.0,61284.0,0.163173]
[1727876920404,0.16316,61290.0,61284.0,0.163173]
[1727876920631,0.163168,61287.0,61282.0,0.163179]
[1727876920852,0.163168,61287.0,61281.0,0.034544]
[1727876920853,0.163176,61284.0,61281.0,0.034544]
[1727876921080,0.16318,61282.0,61281.0,0.034544]
[1727876921339,0.02558004,61289.0,61281.0,0.034544]
[1727876921591,0.02558004,61289.0,61288.0,0.163164]
[1727876921830,0.02558004,61289.0,61281.0,0.164814]
[1727876922062,0.02558004,61289.0,61281.0,0.001634]
[1727876922294,0.163173,61285.0,61281.0,0.010634]
[1727876922518,0.163176,61284.0,61281.0,0.010634]
[1727876922751,0.35190804,61289.0,61282.0,0.03291]
[1727876922992,0.32633,61288.0,61282.0,0.03291]
[1727876923217,0.02558004,61289.0,61282.0,0.03291]
[1727876923446,0.02558004,61289.0,61282.0,0.32636]
[1727876923703,0.02558004,61289.0,61288.0,0.163164]
[1727876923967,0.02558004,61289.0,61285.0,0.16317]
[1727876924196,0.02558004,61289.0,61285.0,0.163171]
[1727876924427,0.02558004,61289.0,61282.0,0.326358]
[1727876924652,0.02558004,61289.0,61286.0,0.163168]
[1727876924904,0.02558004,61289.0,61288.0,0.163164]
[1727876925154,0.0762,61316.0,61303.0,0.163124]
[1727876925624,0.32619,61314.0,61303.0,0.163124]
[1727876925833,0.32619,61314.0,61303.0,0.196034]
[1727876926087,0.326205,61312.0,61303.0,0.196034]
[1727876926325,0.1883,61318.0,61303.0,0.196034]
[1727876926809,0.163094,61315.0,61303.0,0.196034]
[1727876927049,0.514472,61318.0,61303.0,0.196034]
[1727876927050,0.163092,61316.0,61303.0,0.196034]
[1727876927281,0.001817,61304.0,61303.0,0.04191]
[1727876927515,0.001817,61304.0,61303.0,0.009]
[1727876927971,0.001817,61304.0,61303.0,0.172124]
[1727876928439,0.02739099,61304.0,61303.0,0.205034]
[1727876928916,0.02739099,61304.0,61303.0,0.20829642]
[1727876929200,0.001817,61304.0,61303.0,0.205034]
[1727876929651,0.000817,61304.0,61303.0,0.196034]
[1727876930326,0.000817,61304.0,61303.0,0.63815061]
[1727876930555,0.000817,61304.0,61303.0,0.65378261]
[1727876931497,0.000816,61308.0,61307.0,0.196023]
[1727876931981,0.000816,61308.0,61307.0,0.198023]
[1727876932207,0.000816,61308.0,61307.0,0.196023]
[1727876932880,0.000816,61308.0,61307.0,0.210023]
[1727876933376,0.000816,61308.0,61307.0,0.315023]
[1727876933617,0.0002,61319.0,61318.0,0.195994]
[1727876933861,0.0002,61319.0,61318.0,0.63811061]
[1727876934100,0.0002,61319.0,61318.0,0.195994]
[1727876934792,0.0002,61319.0,61318.0,0.03291]
[1727876935021,0.0002,61319.0,61299.0,0.431265]
[1727876935022,0.0002,61319.0,61299.0,0.326265]
[1727876935256,0.0002,61319.0,61306.0,0.326229]
[1727876935491,0.0002,61319.0,61294.0,0.326295]
[1727876935492,0.025571,61316.0,61303.0,0.327876]
[1727876935731,0.025571,61316.0,61312.0,0.03291]
[1727876935960,0.025571,61316.0,61307.0,0.013]
[1727876935961,0.025571,61316.0,61315.0,0.196002]
[1727876936194,0.0002,61319.0,61318.0,0.163084]
[1727876936411,0.163086,61317.0,61316.0,0.03291]
[1727876936856,0.326364,61319.0,61316.0,0.03291]
[1727876936857,0.0002,61319.0,61316.0,0.03291]
[1727876937080,0.0002,61319.0,61318.0,0.163084]
[1727876937528,0.163282,61319.0,61316.0,0.03291]
[1727876937760,0.0002,61319.0,61316.0,0.03291]
[1727876937977,0.163086,61317.0,61316.0,0.03291]
[1727876938243,0.0002,61319.0,61315.0,0.009]
[1727876938471,0.0002,61319.0,61303.0,0.327877]
[1727876938472,0.16311,61308.0,61307.0,0.03291]
[1727876938930,0.18868397,61308.0,61307.0,0.03291]
[1727876939167,0.163121,61304.0,61303.0,0.001632]
[1727876939429,0.186121,61304.0,61303.0,0.001632]
[1727876939652,0.02557397,61308.0,61303.0,0.001632]
[1727876939889,0.02557397,61308.0,61307.0,0.012]
[1727876940124,0.18868397,61308.0,61307.0,0.012]
[1727876940368,0.02557397,61308.0,61303.0,0.001632]
[1727876940609,0.02557397,61308.0,61307.0,0.163113]
[1727876941221,0.02557397,61308.0,61303.0,0.001632]
[1727876941227,0.163121,61304.0,61303.0,0.001632]
[1727876941481,0.163121,61304.0,61285.0,0.359253]
[1727876941482,0.326301,61294.0,61285.0,0.359253]
[1727876941756,0.326277,61298.0,61281.0,0.001634]
[1727876942028,0.023,61299.0,61289.0,0.326321]
[1727876942485,0.163162,61289.0,61285.0,0.163171]
[1727876942488,0.326303,61293.0,61281.0,0.001634]
[1727876942743,0.326294,61295.0,61285.0,0.03291]
[1727876943005,0.105,61317.0,61285.0,0.03291]
[1727876943006,0.2723,61319.0,61300.0,0.03291]
[1727876943275,0.2723,61319.0,61318.0,0.163084]
[1727876943276,0.0002,61319.0,61318.0,0.163084]
[1727876943535,0.0012,61339.0,61338.0,0.163031]
[1727876943773,0.0012,61339.0,61336.0,0.03291]
[1727876944013,0.0012,61339.0,61338.0,0.44211661]
[1727876944263,0.0012,61339.0,61338.0,0.63805761]
[1727876944854,0.0012,61339.0,61338.0,0.163031]
[1727876945027,0.0012,61339.0,61336.0,0.163035]
[1727876945290,0.0012,61339.0,61332.0,0.44211661]
[1727876945543,0.0012,61339.0,61338.0,0.163031]
[1727876945800,0.0012,61339.0,61338.0,0.195941]
[1727876946099,0.0012,61339.0,61338.0,0.205941]
[1727876946539,0.0012,61339.0,61338.0,0.71685761]
[1727876947036,0.0012,61339.0,61338.0,0.73085761]
[1727876947530,0.0012,61339.0,61338.0,0.65205761]
[1727876948517,0.0012,61339.0,61338.0,0.209941]
[1727876948761,0.0012,61339.0,61338.0,0.195941]
[1727876949010,0.0012,61339.0,61338.0,0.209941]
[1727876949580,0.0012,61339.0,61338.0,0.195941]
[1727876949856,0.0012,61339.0,61338.0,0.209941]
[1727876950138,0.164228,61339.0,61338.0,0.014]
[1727876950436,0.164228,61339.0,61304.0,0.11989815]
[1727876950437,0.023,61338.0,61304.0,0.11989815]
[1727876950679,0.023,61332.0,61318.0,0.326165]
[1727876950930,0.023,61332.0,61315.0,0.326181]
[1727876950931,0.163071,61323.0,61319.0,0.163079]
[1727876951215,0.326161,61320.0,61302.0,0.0772]
[1727876951506,0.326161,61320.0,61293.0,0.28961852]
[1727876951507,0.163094,61314.0,61313.0,0.03291]
[1727876951801,0.1826,61320.0,61298.0,0.163136]
[1727876952055,0.1826,61320.0,61297.0,0.326277]
[1727876952056,0.326233,61306.0,61297.0,0.326279]
[1727876952312,0.163121,61304.0,61297.0,0.03291]
[1727876952822,0.186121,61304.0,61295.0,0.03291]
[1727876952825,0.163105,61310.0,61305.0,0.163117]
[1727876953076,0.1,61335.0,61285.0,0.04919292]
[1727876953077,0.023,61327.0,61313.0,0.03291]
[1727876953323,0.023,61328.0,61313.0,0.03291]
[1727876953877,0.163072,61323.0,61319.0,0.163081]
[1727876954141,0.163072,61323.0,61317.0,0.359079]
[1727876954142,0.1986,61331.0,61317.0,0.03291]
[1727876954405,0.1802,61345.0,61317.0,0.03291]
[1727876954672,0.1802,61345.0,61308.0,0.1881]
[1727876954673,0.1802,61345.0,61331.0,0.03291]
[1727876954922,0.0807,61352.0,61338.0,0.163031]
[1727876954923,0.16301,61346.0,61338.0,0.163031]
[1727876955218,0.1791033,61353.0,61338.0,0.63805761]
[1727876955432,0.0161113,61353.0,61338.0,0.63805761]
[1727876957488,0.0161113,61353.0,61338.0,0.64305761]
[1727876957983,0.0161113,61353.0,61338.0,0.63805761]
[1727876958226,0.0161113,61353.0,61338.0,0.195941]
[1727876958454,0.0161113,61353.0,61338.0,0.209941]
[1727876958923,0.0161113,61353.0,61338.0,0.195941]
[1727876959411,0.0161113,61353.0,61338.0,0.214941]
[1727876959839,0.0161113,61353.0,61338.0,0.64305761]
[1727876960060,0.0161113,61353.0,61338.0,0.63805761]
[1727876960343,0.0161113,61353.0,61338.0,0.209941]
[1727876960558,0.0161113,61353.0,61338.0,0.014]
[1727876960559,0.163018,61343.0,61338.0,0.014]
[1727876960765,0.163019,61343.0,61338.0,0.177031]
[1727876960984,0.652055,61345.0,61338.0,0.014]
[1727876961206,0.326045,61342.0,61338.0,0.014]
[1727876961429,0.21278877,61339.0,61338.0,0.014]
[1727876961648,0.163041,61334.0,61333.0,0.03291]
[1727876961866,0.163031,61338.0,61333.0,0.03291]
[1727876962092,0.02676077,61339.0,61333.0,0.03291]
[1727876962317,0.0012,61339.0,61338.0,0.163031]
[1727876962535,0.0012,61339.0,61336.0,0.03291]
[1727876963180,0.0012,61339.0,61328.0,0.03291]
[1727876963398,0.490287,61339.0,61338.0,0.007]
[1727876963617,0.0012,61339.0,61338.0,0.007]
[1727876964524,0.0012,61339.0,61338.0,0.170031]
[1727876964754,0.0012,61339.0,61338.0,0.163031]
[1727876965466,0.0012,61339.0,61332.0,0.03291]
[1727876965693,0.0012,61339.0,61328.0,0.326112]
[1727876965694,0.0012,61339.0,61336.0,0.163034]
[1727876965912,0.0012,61339.0,61315.0,0.0817]
[1727876965913,0.164228,61339.0,61338.0,0.002]
[1727876966131,0.164228,61339.0,61338.0,0.165031]
[1727876966132,0.0012,61339.0,61338.0,0.165031]
[1727876966350,0.0012,61339.0,61338.0,0.002]
[1727876966592,0.0012,61339.0,61313.0,0.002]
[1727876966593,0.023,61338.0,61307.0,0.11332026]
[1727876966833,0.0012,61339.0,61311.0,0.163102]
[1727876966834,0.163085,61318.0,61311.0,0.163102]
[1727876967055,0.16309,61316.0,61307.0,0.163112]
[1727876967295,0.32616,61320.0,61308.0,0.03291]
[1727876967523,0.2113,61327.0,61303.0,0.001632]
[1727876967753,0.023,61321.0,61303.0,0.001632]
[1727876968267,0.1883,61327.0,61304.0,0.00326216]
[1727876968486,0.1883,61327.0,61303.0,0.001632]
[1727876968487,0.002,61323.0,61303.0,0.001632]
[1727876968714,0.023,61324.0,61303.0,0.001632]
[1727876968940,0.326162,61320.0,61303.0,0.001632]
[1727876969421,0.163121,61304.0,61303.0,0.001632]
[1727876969883,0.186121,61304.0,61303.0,0.001632]
[1727876970350,0.02557495,61316.0,61303.0,0.001632]
[1727876970591,0.163121,61304.0,61303.0,0.001632]
[1727876971758,0.163121,61304.0,61303.0,0.002632]
[1727876972007,0.186121,61304.0,61303.0,0.002632]
[1727876972241,0.02557901,61304.0,61303.0,0.001632]
[1727876972479,0.1,61321.0,61303.0,0.001632]
[1727876972712,0.082,61329.0,61303.0,0.003632]
[1727876972933,0.1828,61323.0,61303.0,0.003632]
[1727876973158,0.163121,61304.0,61303.0,0.001632]
[1727876973593,0.16312,61305.0,61303.0,0.001632]
[1727876973825,0.163121,61304.0,61303.0,0.001632]
[1727876974065,0.163111,61308.0,61303.0,0.001632]
[1727876974311,0.326117,61328.0,61303.0,0.001632]
[1727876974552,0.326144,61323.0,61310.0,0.163104]
[1727876974780,0.1895,61335.0,61303.0,0.003632]
[1727876974781,0.326209,61311.0,61303.0,0.003632]
[1727876975004,0.32613,61326.0,61303.0,0.003632]
[1727876975233,0.163121,61304.0,61303.0,0.001632]
[1727876975457,0.0255733,61310.0,61303.0,0.002632]
[1727876975733,0.163112,61308.0,61303.0,0.165755]
[1727876975952,0.326213,61310.0,61303.0,0.165755]
[1727876975953,0.02557408,61309.0,61303.0,0.034542]
[1727876976177,0.02557408,61309.0,61303.0,0.197665]
[1727876976409,0.02557408,61309.0,61304.0,0.16312]
[1727876976644,0.326142,61323.0,61304.0,0.16312]
[1727876976645,0.1842,61338.0,61308.0,0.326217]
[1727876976902,0.32615,61322.0,61310.0,0.359118]
[1727876977128,0.32615,61322.0,61303.0,0.44374861]
[1727876977129,0.163077,61321.0,61313.0,0.326192]
[1727876977357,0.163077,61321.0,61315.0,0.163091]
[1727876977580,0.326133,61325.0,61315.0,0.163091]
[1727876977581,0.163074,61322.0,61315.0,0.163089]
[1727876977816,0.326102,61331.0,61303.0,0.44374861]
[1727876977817,0.163096,61314.0,61308.0,0.163109]
[1727876978052,0.163079,61320.0,61314.0,0.03291]
[1727876978277,0.163067,61325.0,61318.0,0.163083]
[1727876978509,0.163064,61326.0,61319.0,0.16308]
[1727876978738,0.326119,61328.0,61317.0,0.03291]
[1727876978985,0.76812961,61348.0,61317.0,0.03291]
[1727876978986,0.163078,61321.0,61317.0,0.03291]
[1727876979217,0.163084,61318.0,61317.0,0.03291]
[1727876979694,0.163089,61316.0,61315.0,0.001]
[1727876980835,0.002,61321.0,61303.0,0.001632]
[1727876981100,0.163121,61304.0,61303.0,0.001632]
[1727876981325,0.023,61315.0,61303.0,0.001632]
[1727876981555,0.163121,61304.0,61303.0,0.001632]
[1727876981809,0.02557405,61316.0,61305.0,0.03291]
[1727876982049,0.163072,61323.0,61318.0,0.163082]
[1727876982304,0.326123,61327.0,61315.0,0.006]
[1727876982305,0.163068,61324.0,61319.0,0.163081]
[1727876982525,0.326115,61329.0,61306.0,0.075]
[1727876982754,0.000816,61319.0,61318.0,0.163084]
[1727876983209,0.000816,61319.0,61313.0,0.163095]
[1727876983515,0.000816,61319.0,61318.0,0.163084]
[1727876983743,0.000816,61319.0,61315.0,0.163089]
[1727876984198,0.163899,61319.0,61315.0,0.163089]
[1727876984431,0.000816,61319.0,61317.0,0.163086]
[1727876984658,0.000816,61319.0,61318.0,0.163084]
[1727876985351,0.02638369,61319.0,61318.0,0.163084]
[1727876985580,0.02638369,61319.0,61318.0,0.195994]
[1727876986038,0.02638369,61319.0,61317.0,0.163086]
[1727876986268,0.02638369,61319.0,61318.0,0.168084]
[1727876986503,0.02638369,61319.0,61318.0,0.2498455]
[1727876986732,0.000816,61319.0,61318.0,0.246584]
[1727876987194,0.000816,61319.0,61318.0,0.279494]
[1727876987467,0.000816,61319.0,61318.0,0.274494]
[1727876987700,0.000816,61319.0,61318.0,0.71661061]
[1727876987944,0.000816,61319.0,61318.0,0.72761061]
[1727876988400,0.000816,61319.0,61318.0,0.71661061]
[1727876988634,0.000816,61319.0,61318.0,0.288494]
[1727876989345,0.000816,61319.0,61318.0,0.274494]
[1727876990985,0.000816,61319.0,61318.0,0.195994]
[1727876990986,0.02638105,61319.0,61318.0,0.195994]
[1727876991189,0.02638105,61319.0,61318.0,0.209994]
[1727876991450,0.000816,61319.0,61318.0,0.195994]
[1727876991965,0.000816,61319.0,61318.0,0.209994]
[1727876992232,0.000816,61319.0,61318.0,0.63811061]
[1727876992711,0.000816,61319.0,61318.0,0.65411061]
[1727876992950,0.000816,61319.0,61318.0,0.65211061]
[1727876994183,0.000816,61319.0,61318.0,0.209994]
[1727876994629,0.000816,61319.0,61318.0,0.195994]
[1727876995115,0.000816,61319.0,61318.0,0.209994]
[1727876995370,0.000816,61319.0,61318.0,0.21230886]
[1727876995600,0.000816,61319.0,61318.0,0.390494]
[1727876995826,0.000816,61319.0,61318.0,0.209994]
[1727876996311,0.000816,61319.0,61318.0,0.195994]
[1727876996786,0.000816,61319.0,61318.0,0.163084]
[1727876997007,0.000816,61319.0,61318.0,0.195994]
[1727876997688,0.02638323,61319.0,61318.0,0.209994]
[1727876997912,0.000816,61319.0,61318.0,0.209994]
[1727876998131,0.000816,61319.0,61318.0,0.195994]
[1727876998661,0.000816,61319.0,61318.0,0.04591]
[1727876998899,0.163897,61319.0,61318.0,0.04591]
[1727876999127,0.000816,61319.0,61318.0,0.195994]
[1727876999360,0.000816,61319.0,61318.0,0.04591]
[1727876999587,0.02638488,61319.0,61318.0,0.04591]
[1727876999817,0.02638488,61319.0,61318.0,0.208994]
[1727877000552,0.02638488,61319.0,61318.0,0.65111061]
[1727877000553,0.000816,61319.0,61318.0,0.65111061]
[1727877001016,0.000816,61319.0,61318.0,0.73121061]
[1727877001256,0.002016,61339.0,61338.0,0.03291]
[1727877001496,0.002016,61339.0,61338.0,0.71685761]
[1727877001728,0.002016,61339.0,61338.0,0.163031]
[1727877001957,0.002016,61339.0,61338.0,0.63805761]
[1727877002691,0.002016,61339.0,61338.0,0.195941]
[1727877003144,0.002016,61339.0,61338.0,0.209941]
[1727877003822,0.002016,61339.0,61338.0,0.21320139]
[1727877004064,0.002016,61339.0,61338.0,0.209941]
[1727877004523,0.002016,61339.0,61338.0,0.63805761]
[1727877004755,0.002016,61339.0,61338.0,0.82685761]
[1727877005438,0.002016,61339.0,61338.0,0.94585761]
[1727877005667,0.002016,61339.0,61338.0,0.99380616]
[1727877005901,0.0161113,61353.0,61352.0,0.195903]
[1727877006129,0.0161113,61353.0,61352.0,0.162993]
[1727877006404,0.0161113,61353.0,61352.0,0.03291]
[1727877006688,0.0161113,61353.0,61352.0,0.195903]
[1727877007404,0.1791043,61353.0,61345.0,0.326021]
[1727877007654,0.0161113,61353.0,61347.0,0.03291]
[1727877007877,0.0161113,61353.0,61342.0,0.326036]
[1727877008098,0.0161113,61353.0,61346.0,0.163007]
[1727877008332,0.0161113,61353.0,61330.0,0.326099]
[1727877008333,0.0161113,61353.0,61338.0,0.014]
[1727877008556,0.0161113,61353.0,61343.0,0.03291]
[1727877008805,0.1791023,61353.0,61349.0,0.163]
[1727877009264,0.0161113,61353.0,61341.0,0.326045]
[1727877009266,0.162999,61350.0,61345.0,0.163011]
[1727877009492,0.04166827,61353.0,61345.0,0.326021]
[1727877009730,0.162994,61352.0,61345.0,0.326023]
[1727877009968,0.04166827,61353.0,61352.0,0.162993]
[1727877010208,0.04166827,61353.0,61350.0,0.325996]
[1727877010432,0.04166827,61353.0,61349.0,0.004]
[1727877010672,0.185999,61350.0,61349.0,0.004]
[1727877010914,0.185999,61350.0,61320.0,0.326152]
[1727877010915,0.163053,61330.0,61326.0,0.16306]
[1727877011138,0.163045,61333.0,61328.0,0.163056]
[1727877011363,0.163043,61334.0,61327.0,0.32612]
[1727877011587,0.023,61347.0,61324.0,0.163067]
[1727877011588,0.02556416,61332.0,61324.0,0.163067]
[1727877011855,0.02556416,61332.0,61323.0,0.03291]
[1727877011856,0.163061,61327.0,61323.0,0.03291]
[1727877012084,0.326138,61324.0,61300.0,0.1999]
[1727877012309,0.326134,61325.0,61311.0,0.3262]
[1727877012533,0.163078,61320.0,61311.0,0.76831661]
[1727877012757,0.163078,61320.0,61314.0,0.03291]
[1727877013015,0.163078,61320.0,61309.0,0.163108]
[1727877013251,0.163078,61320.0,61300.0,0.01]
[1727877013252,0.186078,61320.0,61305.0,0.326235]
[1727877013483,0.186078,61320.0,61319.0,0.002632]
[1727877013931,0.163096,61314.0,61309.0,0.16074]
[1727877014175,0.023,61320.0,61306.0,0.03291]
[1727877014416,0.1,61342.0,61307.0,0.03291]
[1727877014417,0.1988,61332.0,61307.0,0.03291]
[1727877014640,0.16308,61320.0,61314.0,0.326189]
[1727877014866,0.163068,61324.0,61320.0,0.163078]
[1727877015100,0.0752,61341.0,61307.0,0.03291]
[1727877015335,0.0752,61341.0,61304.0,0.328239]
[1727877015336,0.326083,61334.0,61321.0,0.44211661]
[1727877015565,0.0752,61341.0,61327.0,0.326119]
[1727877015797,0.002,61339.0,61325.0,0.03291]
[1727877016016,0.163055,61329.0,61325.0,0.03291]
[1727877016247,0.16309,61316.0,61312.0,0.163099]
[1727877016476,0.163094,61315.0,61307.0,0.326224]
[1727877016719,0.326108,61330.0,61303.0,0.44374861]
[1727877016720,0.023,61324.0,61305.0,0.326235]
[1727877016951,0.326185,61315.0,61307.0,0.163112]
[1727877017186,0.023,61324.0,61303.0,0.44374861]
[1727877017187,0.023,61324.0,61304.0,0.03291]
[1727877017413,0.326175,61317.0,61310.0,0.163105]
[1727877017635,0.023,61324.0,61308.0,0.03291]
[1727877017852,0.163094,61315.0,61310.0,0.163104]
[1727877018069,0.32618,61316.0,61308.0,0.03291]
[1727877018308,0.002,61335.0,61314.0,0.44211661]
[1727877018531,0.023,61333.0,61316.0,0.03291]
[1727877018756,0.326131,61325.0,61318.0,0.163082]
[1727877018984,0.163074,61322.0,61318.0,0.163082]
[1727877019245,0.32611,61329.0,61316.0,0.03291]
[1727877019453,0.163075,61322.0,61317.0,0.163084]
[1727877019688,0.326142,61323.0,61312.0,0.002]
[1727877019689,0.023,61332.0,61312.0,0.328198]
[1727877019906,0.326136,61325.0,61318.0,0.163081]
[1727877020129,0.163076,61321.0,61316.0,0.163087]
[1727877020395,0.02556889,61326.0,61301.0,0.03291]
[1727877020652,0.02556889,61326.0,61291.0,0.07194702]
[1727877020653,0.326136,61325.0,61313.0,0.326194]
[1727877020872,0.163076,61321.0,61316.0,0.163087]
[1727877021103,0.163076,61321.0,61316.0,0.326178]
[1727877021336,0.163076,61321.0,61313.0,0.326194]
[1727877021337,0.02556889,61326.0,61314.0,0.326185]
[1727877021569,0.02556889,61326.0,61325.0,0.163065]
[1727877022057,0.02556889,61326.0,61325.0,0.166326]
[1727877022280,0.02056889,61326.0,61325.0,0.163065]
[1727877022530,0.325975,61355.0,61349.0,0.162999]
[1727877022766,0.163003,61349.0,61345.0,0.03291]
[1727877022995,0.163007,61347.0,61343.0,0.163016]
[1727877023228,0.326006,61349.0,61331.0,0.44211661]
[1727877023229,0.326021,61346.0,61331.0,0.44211661]
[1727877023466,0.005815,61370.0,61337.0,0.489094]
[1727877023467,0.162998,61351.0,61337.0,0.489094]
[1727877023692,0.163005,61348.0,61343.0,0.163017]
[1727877023925,0.325975,61355.0,61344.0,0.326029]
[1727877024173,0.006,61349.0,61346.0,0.163008]
[1727877024434,0.163009,61346.0,61345.0,0.001]
[1727877025587,0.186009,61346.0,61345.0,0.001]
[1727877025842,0.0161113,61353.0,61334.0,0.326081]
[1727877025843,0.0161113,61353.0,61352.0,0.162993]
[1727877026116,0.163002,61349.0,61344.0,0.163013]
[1727877026344,0.0161113,61353.0,61334.0,0.1994]
[1727877026345,0.0161113,61353.0,61348.0,0.163002]
[1727877026576,0.0161113,61353.0,61346.0,0.326018]
[1727877026577,0.0161113,61353.0,61346.0,0.03291]
[1727877026825,0.0161113,61353.0,61352.0,0.162993]
[1727877027291,0.0161113,61353.0,61337.0,0.326063]
[1727877027292,0.0161113,61353.0,61341.0,0.326045]
[1727877027525,0.0161113,61353.0,61346.0,0.03291]
[1727877027753,0.0161113,61353.0,61334.0,0.44211661]
[1727877027987,0.0161113,61353.0,61335.0,0.326076]
[1727877027988,0.326021,61346.0,61335.0,0.326076]
[1727877028440,0.326024,61346.0,61326.0,0.0819]
[1727877028445,0.163027,61340.0,61335.0,0.163039]
[1727877028692,0.163026,61340.0,61337.0,0.03291]
[1727877028929,0.32602,61346.0,61328.0,0.44211661]
[1727877029155,0.163012,61345.0,61328.0,0.44211661]
[1727877029382,0.0161113,61353.0,61335.0,0.44211661]
[1727877029621,0.0161113,61353.0,61330.0,0.184]
[1727877029622,0.0161113,61353.0,61346.0,0.489028]
[1727877029841,0.0161113,61353.0,61346.0,0.326019]
[1727877030079,0.0161113,61353.0,61352.0,0.162993]
[1727877030296,0.0161113,61353.0,61336.0,0.44211661]
[1727877030515,0.0161113,61353.0,61349.0,0.489]
[1727877030737,0.0161113,61353.0,61351.0,0.162996]
[1727877030954,0.0161113,61353.0,61352.0,0.162993]
[1727877031622,0.0161113,61353.0,61352.0,0.17626896]
[1727877032098,0.0161113,61353.0,61352.0,0.20917896]
[1727877033945,0.04248232,61353.0,61352.0,0.20917896]
[1727877034170,0.04248232,61353.0,61352.0,0.22317896]
[1727877035403,0.0002,61359.0,61358.0,0.162977]
[1727877035641,0.0002,61359.0,61356.0,0.325962]
[1727877035642,0.000819,61376.0,61375.0,0.162932]
[1727877036116,0.000819,61376.0,61375.0,0.20747964]
[1727877036818,0.000819,61376.0,61375.0,0.64959625]
[1727877038261,0.000819,61381.0,61375.0,0.48666425]
[1727877038503,0.000819,61381.0,61378.0,0.195834]
[1727877038955,0.000819,61381.0,61378.0,0.2074023]
[1727877039911,0.000819,61381.0,61378.0,0.2214023]
[1727877040377,0.000819,61381.0,61378.0,0.02243583]
[1727877040624,0.380722,61379.0,61369.0,0.325896]
[1727877040868,0.023,61378.0,61372.0,0.162939]
[1727877041130,0.0002,61379.0,61365.0,0.44211661]
[1727877041350,0.162929,61377.0,61369.0,0.03291]
[1727877041807,0.162926,61378.0,61369.0,0.195858]
[1727877042028,0.162926,61378.0,61365.0,0.44211661]
[1727877042029,0.0232,61379.0,61373.0,0.162936]
[1727877042275,0.187122,61379.0,61378.0,0.014]
[1727877042897,0.0002,61379.0,61363.0,0.03291]
[1727877043151,0.0002,61379.0,61372.0,0.03291]
[1727877043433,0.0002,61379.0,61351.0,0.03291]
[1727877043769,0.488847,61369.0,61357.0,0.16298]
[1727877043961,0.16296,61365.0,61355.0,0.195894]
[1727877044192,0.162958,61366.0,61355.0,0.03291]
[1727877044446,0.325903,61368.0,61355.0,0.03291]
[1727877044447,0.162964,61364.0,61355.0,0.03291]
[1727877044686,0.023,61366.0,61344.0,0.47502661]
[1727877044983,0.023,61366.0,61349.0,0.163001]
[1727877045406,0.325911,61367.0,61346.0,0.358929]
[1727877045407,0.32591,61367.0,61353.0,0.325981]
[1727877045409,0.0817,61371.0,61338.0,0.0797]
[1727877045666,0.023,61375.0,61365.0,0.325917]
[1727877045916,0.023,61375.0,61366.0,0.162956]
[1727877046158,0.185933,61375.0,61358.0,0.325955]
[1727877046425,0.023,61375.0,61356.0,0.44211661]
[1727877046685,0.001,61366.0,61357.0,0.16298]
[1727877046933,0.001,61366.0,61347.0,0.001636]
[1727877047173,0.000818,61365.0,61347.0,0.001636]
[1727877047407,0.023,61362.0,61347.0,0.001636]
[1727877047663,0.000818,61365.0,61348.0,0.358916]
[1727877047896,0.023,61363.0,61352.0,0.325985]
[1727877048129,0.162981,61357.0,61349.0,0.163001]
[1727877048360,0.162977,61359.0,61351.0,0.162995]
[1727877048599,0.325938,61362.0,61347.0,0.001636]
[1727877048600,0.185971,61361.0,61347.0,0.001636]
[1727877048850,0.023,61361.0,61347.0,0.001636]
[1727877049091,0.325957,61358.0,61347.0,0.001636]
[1727877049344,0.023,61362.0,61347.0,0.001636]
[1727877049597,0.000818,61365.0,61347.0,0.001636]
[1727877049846,0.000818,61365.0,61353.0,0.03291]
[1727877050090,0.000818,61365.0,61364.0,0.162961]
[1727877050577,0.000818,61365.0,61360.0,0.32594]
[1727877050829,0.000818,61365.0,61361.0,0.325938]
[1727877051087,0.000818,61365.0,61364.0,0.162961]
[1727877051324,0.001818,61365.0,61364.0,0.171961]
[1727877051808,0.001818,61365.0,61364.0,0.204871]
[1727877052639,0.000818,61365.0,61364.0,0.162961]
[1727877052873,0.000818,61365.0,61361.0,0.325938]
[1727877053173,0.000818,61365.0,61361.0,0.003]
[1727877053409,0.162967,61362.0,61361.0,0.003]
[1727877053664,0.000818,61365.0,61347.0,0.327648]
[1727877053929,0.187777,61365.0,61364.0,0.009]
[1727877054445,0.187777,61365.0,61347.0,0.001636]
[1727877054446,0.024818,61365.0,61347.0,0.001636]
[1727877054704,0.163004,61348.0,61347.0,0.001636]
[1727877055613,0.163002,61349.0,61347.0,0.001636]
[1727877056060,0.023,61357.0,61347.0,0.001636]
[1727877056285,0.162997,61351.0,61347.0,0.001636]
[1727877056521,0.023,61356.0,61347.0,0.001636]
[1727877056760,0.162997,61351.0,61347.0,0.164642]
[1727877056987,0.023,61360.0,61350.0,0.162997]
[1727877057206,0.162989,61354.0,61350.0,0.162997]
[1727877057666,0.325957,61358.0,61347.0,0.004636]
[1727877057899,0.000818,61365.0,61347.0,0.004636]
[1727877058133,0.325934,61362.0,61352.0,0.325983]
[1727877058379,0.326737,61365.0,61349.0,0.03291]
[1727877058629,0.325936,61362.0,61353.0,0.325981]
[1727877058884,0.02555234,61362.0,61353.0,0.325977]
[1727877059168,0.162984,61356.0,61351.0,0.162995]
[1727877059389,0.325946,61360.0,61356.0,0.325961]